fUST/lending_fUST_20250724
["ID","MTS","AMOUNT","RATE_DAILY","PERIOD"]
[374396764,1753287044710,-1372.68,0.00021095,2]
[374396766,1753287044719,-460.0,0.00021095,2]
[374396768,1753287044728,-460.0,0.00021095,2]
[374396770,1753287044738,-5741.59,0.00021095,2]
[374396783,1753287044871,-460.0,0.00021095,2]
[374396785,1753287044881,-460.0,0.00021095,2]
[374396787,1753287044891,-474.94,0.00021095,2]
[374396789,1753287044900,-791.71,0.00021095,2]
[374396791,1753287044910,-1300.02,0.00021095,2]
[374396793,1753287044920,-1507.0,0.00021095,2]
[374396795,1753287044930,-956.15,0.00021095,2]
[374396797,1753287044939,-1963.06,0.00021095,2]
[374396799,1753287044950,-460.0,0.00021095,2]
[374396801,1753287044959,-1585.72,0.00021095,2]
[374396803,1753287044969,-460.0,0.00021095,2]
[374396805,1753287044979,-460.0,0.00021095,2]
[374396806,1753287044988,-1710.24,0.00021095,2]
[374396808,1753287044998,-551.31,0.00021095,2]
[374396810,1753287045008,-1151.0,0.00021096,2]
[374396812,1753287045018,-376.56,0.00021135,2]
[374396814,1753287045028,-160.0,0.00021204,2]
[374396816,1753287045039,-12622.36869388,0.00021204,2]
[374396818,1753287045048,-160.0,0.00021204,2]
[374396820,1753287045058,-160.0,0.00021204,2]
[374396822,1753287045068,-215.84326551,0.00021204,2]
[374396824,1753287045078,-160.0,0.00021204,2]
[374396826,1753287045087,-476.696448,0.00021204,2]
[374396828,1753287045097,-840.06856235,0.00021204,2]
[374396830,1753287045106,-231.11583447,0.00021204,2]
[374396832,1753287045115,-214.67886746,0.00021204,2]
[374396833,1753287045124,-160.0,0.00021204,2]
[374396835,1753287045134,-526.15909479,0.00021204,2]
[374396837,1753287045144,-160.0,0.00021204,2]
[374396839,1753287045154,-160.0,0.00021206,2]
[374396841,1753287045164,-160.0,0.00021206,2]
[374396843,1753287045176,-160.0,0.00021206,2]
[374396845,1753287045187,-160.0,0.00021206,2]
[374396847,1753287045199,-500.0,0.00021264,2]
[374396849,1753287045210,-1892.46,0.000213,3]
[374396851,1753287045219,-473.12,0.000213,3]
[374396853,1753287045230,-151.0,0.000213,3]
[374396855,1753287045240,-946.24,0.0002131,3]
[374396857,1753287045250,-1500.0,0.00021353,2]
[374396859,1753287045260,-5402.99,0.00021368,2]
[374396860,1753287045269,-1696.3,0.00021368,2]
[374396862,1753287045278,-460.0,0.00021368,2]
[374396864,1753287045288,-1008.13,0.00021368,2]
[374396866,1753287045297,-1548.69,0.00021368,2]
[374396868,1753287045307,-616.23,0.00021368,2]
[374396870,1753287045317,-508.59,0.00021368,2]
[374396872,1753287045326,-521.74,0.00021368,2]
[374396874,1753287045336,-688.0,0.00021369,2]
[374396876,1753287045346,-460.0,0.00021369,2]
[374396878,1753287045355,-460.0,0.00021369,2]
[374396880,1753287045363,-460.0,0.00021369,2]
[374396881,1753287045373,-460.0,0.00021369,2]
[374396883,1753287045382,-432.83126345,0.00021369,2]
[374396885,1753287045392,-460.0,0.00021369,2]
[374396887,1753287045402,-460.0,0.00021369,2]
[374396889,1753287045411,-460.0,0.00021369,2]
[374396891,1753287045421,-1893.57,0.00021369,2]
[374396893,1753287045430,-1332.29,0.00021369,2]
[374396895,1753287045440,-1372.68,0.00021369,2]
[374396897,1753287045452,-460.0,0.00021369,2]
[374396899,1753287045461,-460.0,0.00021369,2]
[374396901,1753287045471,-5741.59,0.00021369,2]
[374396902,1753287045480,-460.0,0.00021369,2]
[374396904,1753287045490,-460.0,0.00021369,2]
[374396906,1753287045500,-474.94,0.00021369,2]
[374396908,1753287045510,-791.71,0.00021369,2]
[374396910,1753287045520,-1300.02,0.00021369,2]
[374396912,1753287045529,-1507.0,0.00021369,2]
[374396914,1753287045539,-956.15,0.00021369,2]
[374396916,1753287045548,-1963.06,0.00021369,2]
[374396918,1753287045557,-460.0,0.00021369,2]
[374396919,1753287045567,-1585.72,0.00021369,2]
[374396921,1753287045577,-460.0,0.00021369,2]
[374396923,1753287045587,-522.36,0.00021369,2]
[374396925,1753287045596,-1710.24,0.00021369,2]
[374396927,1753287045606,-551.31,0.00021369,2]
[374396929,1753287045615,-1151.0,0.0002137,2]
[374396930,1753287045624,-160.0,0.00021383,2]
[374396932,1753287045635,-151.0,0.000215,4]
[374396934,1753287045644,-2311.4,0.0002154,5]
[374396936,1753287045653,-5402.99,0.00021642,2]
[374396938,1753287045663,-1696.3,0.00021642,2]
[374396940,1753287045673,-460.0,0.00021642,2]
[374396942,1753287045683,-1008.13,0.00021642,2]
[374396943,1753287045692,-1548.69,0.00021642,2]
[374396945,1753287045704,-616.23,0.00021642,2]
[374396947,1753287045714,-508.59,0.00021642,2]
[374396949,1753287045724,-521.74,0.00021642,2]
[374396951,1753287045734,-688.0,0.00021643,2]
[374396953,1753287045744,-460.0,0.00021643,2]
[374396954,1753287045754,-460.0,0.00021643,2]
[374396956,1753287045764,-460.0,0.00021643,2]
[374396958,1753287045774,-460.0,0.00021643,2]
[374396960,1753287045784,-460.0,0.00021643,2]
[374396963,1753287045793,-460.0,0.00021643,2]
[374396964,1753287045803,-460.0,0.00021643,2]
[374396966,1753287045813,-1893.57,0.00021643,2]
[374396968,1753287045823,-1332.29,0.00021643,2]
[374396970,1753287045833,-1372.68,0.00021643,2]
[374396972,1753287045843,-460.0,0.00021643,2]
[374396974,1753287045854,-460.0,0.00021643,2]
[374396976,1753287045864,-5741.59,0.00021643,2]
[374396978,1753287045875,-460.0,0.00021643,2]
[374396980,1753287045886,-460.0,0.00021643,2]
[374396981,1753287045895,-474.94,0.00021643,2]
[374396983,1753287045905,-1300.02,0.00021643,2]
[374396985,1753287045915,-791.71,0.00021643,2]
[374396987,1753287045925,-1507.0,0.00021643,2]
[374396989,1753287045934,-956.15,0.00021643,2]
[374396990,1753287045945,-1963.06,0.00021643,2]
[374396992,1753287045954,-460.0,0.00021643,2]
[374396995,1753287045963,-1585.72,0.00021643,2]
[374396997,1753287045973,-460.0,0.00021643,2]
[374396998,1753287045983,-1710.24,0.00021643,2]
[374397000,1753287045993,-551.31,0.00021643,2]
[374397002,1753287046003,-1151.0,0.00021644,2]
[374397004,1753287046012,-1071.67887171,0.0002168,2]
[374397006,1753287046022,-151.0,0.000217,4]
[374397009,1753287046031,-429.674968,0.00021703,2]
[374397010,1753287046040,-151.0,0.000218,3]
[374397012,1753287046049,-2311.4,0.00021864,5]
[374397014,1753287046059,-500.0,0.00021901,2]
[374397016,1753287046069,-5402.99,0.00021916,2]
[374397017,1753287046079,-1696.3,0.00021916,2]
[374397019,1753287046089,-460.0,0.00021916,2]
[374397021,1753287046099,-1008.13,0.00021916,2]
[374397023,1753287046109,-1548.69,0.00021916,2]
[374397025,1753287046119,-616.23,0.00021916,2]
[374397027,1753287046128,-508.59,0.00021916,2]
[374397029,1753287046139,-521.74,0.00021916,2]
[374397030,1753287046148,-688.0,0.00021917,2]
[374397032,1753287046157,-460.0,0.00021917,2]
[374397034,1753287046169,-460.0,0.00021917,2]
[374397036,1753287046178,-460.0,0.00021917,2]
[374397037,1753287046188,-460.0,0.00021917,2]
[374397039,1753287046200,-460.0,0.00021917,2]
[374397041,1753287046211,-460.0,0.00021917,2]
[374397043,1753287046221,-267.66685408,0.00021917,2]
[374397045,1753287046231,-1893.57,0.00021917,2]
[374397047,1753287046241,-1332.29,0.00021917,2]
[374397049,1753287046250,-1372.68,0.00021917,2]
[374397050,1753287046259,-460.0,0.00021917,2]
[374397052,1753287046269,-460.0,0.00021917,2]
[374397054,1753287046278,-5741.59,0.00021917,2]
[374397056,1753287046287,-460.0,0.00021917,2]
[374397058,1753287046297,-154.70710293,0.00021917,2]
[374397060,1753287046306,-474.94,0.00021917,2]
[374397061,1753287046315,-500.0,0.00021917,2]
[374397063,1753287046325,-500.0,0.00021917,2]
[374397065,1753287046335,-500.0,0.00021917,2]
[374397067,1753287046344,-500.0,0.00021917,2]
[374397069,1753287046354,-500.0,0.00021917,2]
[374397071,1753287046363,-500.0,0.00021917,2]
[374397073,1753287046373,-500.0,0.00021917,2]
[374397075,1753287046383,-1300.02,0.00021917,2]
[374397076,1753287046393,-791.71,0.00021917,2]
[374397078,1753287046402,-1507.0,0.00021917,2]
[374397080,1753287046411,-956.15,0.00021917,2]
[374397082,1753287046421,-1963.06,0.00021917,2]
[374397084,1753287046430,-577.99,0.00021917,2]
[374397086,1753287046439,-1585.72,0.00021917,2]
[374397087,1753287046451,-460.0,0.00021917,2]
[374397089,1753287046460,-1710.24,0.00021917,2]
[374397091,1753287046470,-551.31,0.00021917,2]
[374397093,1753287046479,-1151.0,0.00021918,2]
[374397095,1753287046489,-1322.9240316,0.00021918,7]
[374397097,1753287046498,-150.46368495,0.00021918,2]
[374397099,1753287046508,-200.0,0.00021918,2]
[374397101,1753287046518,-268087.87468817,0.00021929,2]
[374397103,1753287046527,-260.0,0.00021931,2]
[374397104,1753287046536,-500.0,0.00021973,2]
[374397106,1753287046545,-500.0,0.00021973,2]
[374397108,1753287046555,-156.64231511,0.00021973,2]
[374397110,1753287046565,-500.0,0.00021973,2]
[374397112,1753287046574,-500.0,0.00021973,2]
[374397114,1753287046583,-500.0,0.00021973,2]
[374397115,1753287046593,-500.0,0.00021973,2]
[374397117,1753287046602,-500.0,0.00021973,2]
[374397119,1753287046611,-500.0,0.00021973,2]
[374397121,1753287046620,-500.0,0.00021973,2]
[374397123,1753287046630,-500.0,0.00021973,2]
[374397125,1753287046639,-500.0,0.00021973,2]
[374397127,1753287046648,-500.0,0.00021973,2]
[374397129,1753287046657,-500.0,0.00021973,2]
[374397130,1753287046667,-500.0,0.00021973,2]
[374397132,1753287046676,-500.0,0.00021973,2]
[374397134,1753287046686,-500.0,0.00021973,2]
[374397136,1753287046698,-500.0,0.00021973,2]
[374397138,1753287046707,-386.60069791,0.00021973,2]
[374397140,1753287046717,-500.0,0.00021973,2]
[374397142,1753287046726,-151.0,0.00022,8]
[374397143,1753287046735,-1595.1,0.00022,7]
[374397145,1753287046744,-12176.83,0.00022,7]
[374397147,1753287046754,-3410.41,0.00022,7]
[374397149,1753287046763,-151.0,0.00022,10]
[374397150,1753287046772,-160.0,0.00022,7]
[374397152,1753287046782,-12622.36869388,0.00022,7]
[374397154,1753287046791,-476.696448,0.00022,7]
[374397156,1753287046800,-214.67886746,0.00022,7]
[374397158,1753287046810,-170.0,0.00022,2]
[374397159,1753287046820,-502.08,0.00022053,2]
[374397161,1753287046830,-2311.4,0.00022187,5]
[374397163,1753287046840,-5402.99,0.0002219,2]
[374397165,1753287046851,-1696.3,0.0002219,2]
[374397167,1753287046861,-460.0,0.0002219,2]
[374397169,1753287046871,-1008.13,0.0002219,2]
[374397170,1753287046881,-1548.69,0.0002219,2]
[374397172,1753287046891,-616.23,0.0002219,2]
[374397174,1753287046901,-508.59,0.0002219,2]
[374397176,1753287046911,-521.74,0.0002219,2]
[374397178,1753287046921,-688.0,0.00022191,2]
[374397179,1753287046930,-460.0,0.00022191,2]
[374397181,1753287046941,-460.0,0.00022191,2]
[374397183,1753287046954,-156.94462419,0.00022191,2]
[374397185,1753287046963,-460.0,0.00022191,2]
[374397187,1753287046973,-460.0,0.00022191,2]
[374397189,1753287046982,-460.0,0.00022191,2]
[374397191,1753287046991,-1893.57,0.00022191,2]
[374397192,1753287047001,-1332.29,0.00022191,2]
[374397196,1753287047011,-1372.68,0.00022191,2]
[374397200,1753287047021,-460.0,0.00022191,2]
[374397203,1753287047030,-460.0,0.00022191,2]
[374397206,1753287047040,-5741.59,0.00022191,2]
[374397207,1753287047049,-460.0,0.00022191,2]
[374397209,1753287047059,-474.94,0.00022191,2]
[374397211,1753287047069,-1300.02,0.00022191,2]
[374397213,1753287047080,-791.71,0.00022191,2]
[374397215,1753287047091,-1507.0,0.00022191,2]
[374397217,1753287047101,-956.15,0.00022191,2]
[374397219,1753287047111,-1963.06,0.00022191,2]
[374397221,1753287047120,-1585.72,0.00022191,2]
[374397223,1753287047130,-460.0,0.00022191,2]
[374397224,1753287047140,-1710.24,0.00022191,2]
[374397226,1753287047149,-551.31,0.00022191,2]
[374397228,1753287047159,-1151.0,0.00022192,2]
[374397230,1753287047171,-170.0,0.00022192,7]
[374397232,1753287047180,-291.361643,0.00022286,3]
[374397233,1753287047189,-258.06317,0.00022286,3]
[374397235,1753287047201,-1071.67887171,0.00022297,2]
[374397237,1753287047211,-151.0,0.000223,6]
[374397239,1753287047221,-151.0,0.000223,5]
[374397241,1753287047230,-500.0,0.0002236,2]
[374397243,1753287047239,-250.0,0.00022455,2]
[374397244,1753287047248,-5402.99,0.00022464,2]
[374397246,1753287047258,-1696.3,0.00022464,2]
[374397248,1753287047268,-460.0,0.00022464,2]
[374397250,1753287047277,-1008.13,0.00022464,2]
[374397252,1753287047287,-1548.69,0.00022464,2]
[374397254,1753287047296,-616.23,0.00022464,2]
[374397256,1753287047305,-508.59,0.00022464,2]
[374397257,1753287047315,-521.74,0.00022464,2]
[374397259,1753287047325,-688.0,0.00022465,2]
[374397261,1753287047334,-460.0,0.00022465,2]
[374397263,1753287047344,-460.0,0.00022465,2]
[374397265,1753287047354,-460.0,0.00022465,2]
[374397266,1753287047363,-460.0,0.00022465,2]
[374397268,1753287047373,-460.0,0.00022465,2]
[374397270,1753287047383,-1893.57,0.00022465,2]
[374397272,1753287047392,-322.40652318,0.00022465,2]
[374397291,1753287047588,-460.0,0.00019178,2]
[374397293,1753287047598,-1009.88347682,0.00022465,2]
[374397295,1753287047609,-1372.68,0.00022465,2]
[374397296,1753287047619,-168.18724148,0.00022465,2]
[374397298,1753287047629,-448.23552292,0.00022465,2]
[374397300,1753287047638,-5741.59,0.00022465,2]
[374397302,1753287047648,-460.0,0.00022465,2]
[374397304,1753287047658,-474.94,0.00022465,2]
[374397306,1753287047668,-1300.02,0.00022465,2]
[374397308,1753287047678,-791.71,0.00022465,2]
[374397310,1753287047687,-1507.0,0.00022465,2]
[374397312,1753287047700,-956.15,0.00022465,2]
[374397313,1753287047710,-1963.06,0.00022465,2]
[374397315,1753287047720,-2333.3,0.00022465,2]
[374397317,1753287047729,-1585.72,0.00022465,2]
[374397319,1753287047739,-460.0,0.00022465,2]
[374397333,1753287047878,-1710.24,0.00022465,2]
[374397335,1753287047887,-551.31,0.00022465,2]
[374397337,1753287047897,-1151.0,0.00022466,2]
[374397339,1753287047907,-360.0,0.00022479,2]
[374397340,1753287047916,-1218.6783844,0.00022494,2]
[374397342,1753287047926,-151.0,0.000225,10]
[374397344,1753287047936,-2311.4,0.00022511,5]
[374397346,1753287047947,-1118.52113841,0.00022521,2]
[374397348,1753287047956,-1000.0,0.00022521,2]
[374397350,1753287047966,-1000.0,0.00022521,2]
[374397352,1753287047975,-1000.0,0.00022521,2]
[374397354,1753287047984,-1000.0,0.00022521,2]
[374397355,1753287047994,-501.72112936,0.00022521,2]
[374397357,1753287048004,-1000.0,0.00022521,2]
[374397359,1753287048014,-1000.0,0.00022521,2]
[374397361,1753287048023,-1000.0,0.00022521,2]
[374397363,1753287048033,-1057.1355728,0.00022521,2]
[374397365,1753287048043,-1000.0,0.00022521,2]
[374397367,1753287048053,-505.18002943,0.00022521,2]
[374397369,1753287048064,-1000.0,0.00022521,2]
[374397371,1753287048074,-1000.0,0.00022521,2]
[374397373,1753287048083,-649.02,0.0002257,3]
[374397374,1753287048093,-1265.32,0.0002257,3]
[374397376,1753287048103,-170.6692493,0.0002259,2]
[374397378,1753287048113,-151.0,0.000226,5]
[374397380,1753287048123,-348.21195986,0.00022603,2]
[374397382,1753287048133,-649.03,0.0002267,2]
[374397384,1753287048142,-1265.32,0.0002267,3]
[374397386,1753287048152,-151.0,0.0002269,2]
[374397388,1753287048165,-151.0,0.0002269,2]
[374397390,1753287048176,-151.0,0.0002269,2]
[374397392,1753287048186,-151.0,0.0002269,2]
[374397393,1753287048197,-151.0,0.0002269,2]
[374397395,1753287048208,-151.0,0.0002269,2]
[374397397,1753287048218,-151.0,0.0002269,2]
[374397399,1753287048228,-25000.0,0.0002269,2]
[374397401,1753287048239,-151.0,0.0002269,2]
[374397403,1753287048249,-151.0,0.0002269,2]
[374397405,1753287048260,-279.85335205,0.0002269,2]
[374397407,1753287048270,-151.0,0.0002269,2]
[374397408,1753287048279,-151.0,0.0002269,2]
[374397410,1753287048290,-151.0,0.0002269,2]
[374397412,1753287048300,-151.0,0.0002269,2]
[374397414,1753287048310,-151.0,0.0002269,2]
[374397416,1753287048320,-151.0,0.0002269,2]
[374397418,1753287048330,-151.0,0.0002269,2]
[374397420,1753287048341,-151.0,0.0002269,2]
[374397422,1753287048351,-151.0,0.0002269,2]
[374397424,1753287048360,-151.0,0.0002269,2]
[374397426,1753287048371,-151.0,0.0002269,2]
[374397428,1753287048381,-151.0,0.0002269,2]
[374397430,1753287048391,-151.0,0.0002269,2]
[374397432,1753287048400,-215.0738,0.0002269,2]
[374397434,1753287048410,-151.0,0.0002269,2]
[374397435,1753287048420,-151.0,0.0002269,2]
[374397437,1753287048429,-151.0,0.0002269,2]
[374397439,1753287048438,-151.0,0.0002269,2]
[374397441,1753287048449,-151.0,0.0002269,2]
[374397443,1753287048459,-151.0,0.0002269,2]
[374397445,1753287048468,-5402.99,0.00022738,2]
[374397447,1753287048478,-1696.3,0.00022738,2]
[374397449,1753287048489,-460.0,0.00022738,2]
[374397450,1753287048498,-1008.13,0.00022738,2]
[374397452,1753287048508,-1548.69,0.00022738,2]
[374397454,1753287048517,-616.23,0.00022738,2]
[374397456,1753287048527,-508.59,0.00022738,2]
[374397458,1753287048537,-521.74,0.00022738,2]
[374397460,1753287048546,-460.0,0.00022739,2]
[374397462,1753287048557,-460.0,0.00022739,2]
[374397464,1753287048566,-460.0,0.00022739,2]
[374397465,1753287048575,-460.0,0.00022739,2]
[374397467,1753287048584,-460.0,0.00022739,2]
[374397469,1753287048593,-1893.57,0.00022739,2]
[374397471,1753287048603,-1332.29,0.00022739,2]
[374397473,1753287048613,-1372.68,0.00022739,2]
[374397475,1753287048624,-5741.59,0.00022739,2]
[374397477,1753287048634,-460.0,0.00022739,2]
[374397478,1753287048643,-474.94,0.00022739,2]
[374397480,1753287048653,-1300.02,0.00022739,2]
[374397482,1753287048663,-791.71,0.00022739,2]
[374397484,1753287048672,-1507.0,0.00022739,2]
[374397486,1753287048681,-956.15,0.00022739,2]
[374397488,1753287048691,-1963.06,0.00022739,2]
[374397490,1753287048703,-1585.72,0.00022739,2]
[374397492,1753287048712,-460.0,0.00022739,2]
[374397494,1753287048722,-1710.24,0.00022739,2]
[374397495,1753287048730,-551.31,0.00022739,2]
[374397497,1753287048740,-1151.0,0.0002274,2]
[374397499,1753287048749,-554.0,0.00022776,2]
[374397501,1753287048759,-151.0,0.000228,10]
[374397503,1753287048768,-2311.4,0.00022834,6]
[374397505,1753287048778,-269.31324823,0.00022873,2]
[374397507,1753287048787,-500.0,0.00022873,2]
[374397509,1753287048796,-500.0,0.00022873,2]
[374397510,1753287048805,-621.69907411,0.00022873,2]
[374397512,1753287048815,-500.0,0.00022873,2]
[374397514,1753287048824,-158.27900585,0.00022873,2]
[374397516,1753287048833,-500.0,0.00022873,2]
[374397518,1753287048843,-500.0,0.00022873,2]
[374397520,1753287048853,-500.0,0.00022873,2]
[374397521,1753287048864,-500.0,0.00022873,2]
[374397523,1753287048873,-644.41561795,0.00022873,2]
[374397525,1753287048883,-500.8524135,0.00022873,2]
[374397527,1753287048893,-500.0,0.00022873,2]
[374397529,1753287048905,-500.0,0.00022873,2]
[374397531,1753287048915,-500.0,0.00022873,2]
[374397533,1753287048925,-500.0,0.00022873,2]
[374397535,1753287048934,-500.0,0.00022873,2]
[374397536,1753287048945,-500.0,0.00022873,2]
[374397537,1753287048954,-500.0,0.00022873,2]
[374397538,1753287048964,-500.0,0.00022873,2]
[374397539,1753287048974,-500.0,0.00022873,2]
[374397540,1753287048984,-500.0,0.00022873,2]
[374397541,1753287048994,-500.0,0.00022873,2]
[374397542,1753287049003,-641.49978633,0.00022873,2]
[374397543,1753287049013,-552.78730248,0.00022873,2]
[374397544,1753287049023,-996.10129483,0.00022873,2]
[374397545,1753287049033,-12622.36869388,0.0002289,10]
[374397546,1753287049043,-214.67886746,0.0002289,10]
[374397547,1753287049053,-6105.26635795,0.000229,2]
[374397548,1753287049063,-90602.21804707,0.000229,7]
[374397549,1753287049148,-460.0,0.00019452,2]
[374397550,1753287049158,-94453.89124069,0.000229,7]
[374397551,1753287049223,-460.0,0.00019726,2]
[374397552,1753287049232,-258.67234176,0.000229,7]
[374397553,1753287049250,-827.21057423,0.00018986,2]
[374397554,1753287049264,-850.99578839,0.00018986,2]
[374397555,1753287049273,-1838.14684577,0.000229,7]
[374398719,1753287216265,388.982101,0.00013699,2]
[374399492,1753287729855,10000.0,0.00016781,2]
[374399493,1753287754508,378.72,0.00016781,2]
[374399495,1753287952116,-4002.81979531,0.00018427,2]
[374399498,1753288030206,-169.48136937,0.00018427,2]
[374399499,1753288039124,-1822.35869666,0.00018427,2]
[374399500,1753288052084,-764.45658094,0.00018427,2]
[374399539,1753288235069,-2483.16711242,0.00018427,2]
[374399540,1753288235079,-1248.55120241,0.00018503,2]
[374399541,1753288235088,-175.27765779,0.00018603,2]
[374399542,1753288235098,-150.0,0.000189,2]
[374399543,1753288235107,-632.5506483,0.00019,2]
[374399544,1753288235117,-962.54457415,0.000191,3]
[374399545,1753288235133,-6046.04032946,0.000191,3]
[374399571,1753288238897,-2763.2031089,0.000191,3]
[374399572,1753288238953,-8550.13293233,0.000191,3]
[374399573,1753288238964,-608.92218227,0.000191,3]
[374399574,1753288238975,-325.38067191,0.000191,3]
[374399575,1753288239006,-64672.23939528,0.000191,3]
[374399576,1753288239015,-12622.36869388,0.000191,3]
[374399577,1753288239033,-214.67886746,0.000191,3]
[374399578,1753288239046,-460.0,0.00019178,2]
[374399579,1753288239056,-460.0,0.00019178,2]
[374399580,1753288239066,-464.63392845,0.00019178,2]
[374399581,1753288239076,-460.0,0.00019178,2]
[374399582,1753288239086,-460.0,0.00019178,2]
[374399583,1753288239096,-460.0,0.00019178,2]
[374399584,1753288239106,-460.0,0.00019178,2]
[374399585,1753288239116,-460.0,0.00019178,2]
[374399586,1753288239126,-460.0,0.00019178,2]
[374399587,1753288239136,-258.24552175,0.00019178,2]
[374399588,1753288239146,-156.94462419,0.00019178,2]
[374399589,1753288239156,-460.0,0.00019178,2]
[374399590,1753288239166,-350.31257663,0.00019178,2]
[374399591,1753288239179,-460.0,0.00019178,2]
[374399592,1753288239189,-460.0,0.00019178,2]
[374399593,1753288239199,-460.0,0.00019178,2]
[374399594,1753288239209,-525.46718887,0.00019178,2]
[374399595,1753288239219,-460.0,0.00019178,2]
[374399596,1753288239229,-252.68061219,0.00019178,2]
[374399597,1753288239240,-499.93,0.00019178,2]
[374399598,1753288239250,-969.61,0.00019178,2]
[374399599,1753288239259,-985.12,0.00019178,2]
[374399600,1753288239269,-460.0,0.00019178,2]
[374399601,1753288239279,-460.0,0.00019178,2]
[374399602,1753288239289,-679.58,0.00019178,2]
[374399603,1753288239299,-460.0,0.00019178,2]
[374399604,1753288239308,-460.0,0.00019178,2]
[374399605,1753288239319,-460.0,0.00019178,2]
[374399606,1753288239328,-460.0,0.00019178,2]
[374399607,1753288239338,-460.0,0.00019178,2]
[374399608,1753288239348,-460.0,0.00019178,2]
[374399609,1753288239358,-546.07,0.00019178,2]
[374399610,1753288239368,-460.0,0.00019178,2]
[374399611,1753288239377,-460.0,0.00019178,2]
[374399612,1753288239387,-460.0,0.00019178,2]
[374399613,1753288239397,-758.35,0.00019178,2]
[374399614,1753288239406,-282.58150762,0.00019178,2]
[374399615,1753288239416,-522.36,0.00019178,2]
[374399616,1753288239427,-460.0,0.00019178,2]
[374399617,1753288239437,-460.0,0.00019178,2]
[374399618,1753288239447,-301.40876993,0.00019178,2]
[374399619,1753288239457,-187.86743574,0.00019178,2]
[374399620,1753288239467,-557.76,0.00019178,2]
[374399621,1753288239476,-460.0,0.00019178,2]
[374399622,1753288239486,-4434.18,0.00019178,2]
[374399623,1753288239496,-3588.5,0.00019178,2]
[374399624,1753288239505,-1096.99,0.00019178,2]
[374399625,1753288239519,-460.0,0.00019178,2]
[374399626,1753288239529,-460.0,0.00019178,2]
[374399627,1753288239539,-1211.42,0.00019178,2]
[374399628,1753288239550,-5000.0,0.00019178,2]
[374399629,1753288239560,-5000.0,0.00019178,2]
[374399630,1753288239569,-186.864104,0.00019178,2]
[374399631,1753288239579,-3354.32519713,0.00019178,2]
[374399632,1753288239588,-215.49,0.00019394,2]
[374399633,1753288239599,-827.97,0.0001944,3]
[374399634,1753288239608,-551.97,0.00019441,3]
[374399635,1753288239618,-275.98,0.00019441,3]
[374399636,1753288239628,-690.71,0.0001945,2]
[374399637,1753288239637,-862.25,0.0001945,2]
[374399638,1753288239647,-629.14,0.0001945,2]
[374399639,1753288239660,-696.5,0.0001945,2]
[374399640,1753288239672,-460.0,0.0001945,2]
[374399641,1753288239683,-291.02872481,0.00019451,2]
[374399642,1753288239692,-259.63602009,0.00019451,2]
[374399643,1753288239703,-460.0,0.00019451,2]
[374399644,1753288239712,-460.0,0.00019451,2]
[374399645,1753288239722,-460.0,0.00019451,2]
[374399646,1753288239731,-460.0,0.00019451,2]
[374399647,1753288239741,-460.0,0.00019451,2]
[374399648,1753288239751,-460.0,0.00019451,2]
[374399649,1753288239761,-460.0,0.00019451,2]